[Event "EYCC Open U12 2018"]
[Site "Riga"]
[Date "2018.08.27"]
[Round "7"]
[White "Mitusov, Semen"]
[Black "Silich, Yahor"]
[Result "1-0"]
[ECO "B06"]
[WhiteElo "2140"]
[BlackElo "2043"]
[Annotator "NA"]
[PlyCount "73"]
[EventDate "2018.08.20"]
[EventType "swiss"]
[EventCountry "LAT"]
[SourceTitle "playchess.com"]
[Source "ChessBase"]
[SourceQuality "1"]
[TimeControl "40/5400+30:1800+30"]

1. d4 {[%emt 0:00:00]} g6 {[%emt 0:00:00]} 2. e4 {[%emt 0:00:13]} Bg7 {[%emt 0:01:05]} 3. Nc3 {[%emt 0:00:21]} c5 {[%emt 0:00:54]} 4. d5 {[%emt 0:01:46]} d6 {[%emt 0:01:39]} 5. h3 {[%emt 0:01:32]} Nf6 {[%emt 0:04:14]} 6. Nf3 {[%emt 0:01:32]} O-O {[%emt 0:00:39]} 7. a4 {[%emt 0:02:04]} Na6 {[%emt 0:14:08]} 8. Be2 {[%emt 0:05:08]} Nc7 {[%emt 0:00:55]} 9. O-O {[%emt 0:02:41]} a6 {[%emt 0:02:08]} 10. Bf4 {[%emt 0:04:29]} b6 {[%emt 0:10:04]} 11. Re1 {[%emt 0:05:05]} Bb7 {[%emt 0:02:29]} 12. Bc4 {[%emt 0:02:51]} Re8 {[%emt 0:14:50]} 13. Qd2 {[%emt 0:04:08] LiveBook: 6 Games} Bh8 $16 {[%emt 0:15:46]} 14. Bh2 {[%emt 0:05:07]} Rf8 {[%emt 0:05:53]} 15. Rad1 {[%emt 0:04:54]} Rb8 {[%emt 0:04:18]} 16. Qe2 {[%emt 0:09:08]} Nh5 {[%emt 0:03:47]} 17. e5 {[%emt 0:03:21]} Ng7 {[%emt 0:01:54]} 18. Ne4 {[%emt 0:09:24]} Nge8 {[%emt 0:03:08]} 19. Nc3 {[%emt 0:07:08]} Ng7 {[%emt 0:00:41]} 20. g4 {[%emt 0:02:14]} h5 {[%emt 0:05:29]} 21. Ng5 {[%emt 0:01:00]} hxg4 {[%emt 0:04:53]} 22. hxg4 {[%emt 0:00:12]} Nge8 {[%emt 0:01:25]} 23. Qe3 {[%emt 0:01:49]} f6 {[%emt 0:00:21]} 24. exf6 {[%emt 0:02:39]} Bxf6 {[%emt 0:00:01]} 25. Nce4 {[%emt 0:00:49]} e5 {[%emt 0:01:13]} 26. dxe6 {[%emt 0:02:59]} d5 {[%emt 0:00:03]} 27. Nxf6+ {[%emt 0:02:00]} Qxf6 {[%emt 0:00:02]} 28. e7 {[%emt 0:00:35]} Rf7 {[%emt 0:01:22]} 29. Nxf7 {[%emt 0:02:58]} dxc4 {[%emt 0:00:05]} 30. Nd6 {[%emt 0:01:58]} Nd5 {[%emt 0:00:56]} 31. Nxe8 {[%emt 0:02:11]} Rxe8 {[%emt 0:00:01]} 32. Qe6+ {[%emt 0:00:40]} Qxe6 {[%emt 0:00:05]} 33. Rxe6 {[%emt 0:00:01]} Kf7 {[%emt 0:00:05]} 34. Rd6 {[%emt 0:03:00]} Nf6 {[%emt 0:01:15]} 35. Rxb6 {[%emt 0:02:36]} Bf3 {[%emt 0:00:32]} 36. Re1 {[%emt 0:00:24]} Nxg4 {[%emt 0:01:04]} 37. Rxa6 1-0

[Event "EYCC Open U12 2018"]
[Site "Riga"]
[Date "2018.08.27"]
[Round "7"]
[White "Rozen, Eytan"]
[Black "Sokolovsky, Yahli"]
[Result "0-1"]
[ECO "A05"]
[WhiteElo "2106"]
[BlackElo "2062"]
[Annotator "NA"]
[PlyCount "64"]
[EventDate "2018.08.20"]
[EventType "swiss"]
[EventCountry "LAT"]
[SourceTitle "playchess.com"]
[Source "ChessBase"]
[SourceQuality "1"]
[TimeControl "40/5400+30:1800+30"]

1. Nf3 {[%emt 0:00:00]} Nf6 {[%emt 0:00:00]} 2. b3 {[%emt 0:00:00]} g6 {[%emt 0:00:57]} 3. Bb2 {[%emt 0:00:00]} Bg7 {[%emt 0:00:06]} 4. e3 {[%emt 0:00:14]} O-O {[%emt 0:01:09]} 5. d4 {[%emt 0:00:24]} d6 {[%emt 0:01:09]} 6. Nbd2 {[%emt 0:01:12]} Nbd7 {[%emt 0:01:45]} 7. Be2 {[%emt 0:03:31]} b6 {[%emt 0:03:09]} 8. O-O {[%emt 0:00:58]} Bb7 {[%emt 0:00:18]} 9. c4 {[%emt 0:01:07]} Re8 {[%emt 0:03:35]} 10. Qc2 {[%emt 0:08:15]} e5 {[%emt 0:01:51]} 11. dxe5 {[%emt 0:04:41]} dxe5 {[%emt 0:02:17]} 12. Rfd1 {[%emt 0:07:04]} Qe7 {[%emt 0:02:16]} 13. Rac1 {[%emt 0:03:46]} a5 {[%emt 0:03:30]} 14. a4 {[%emt 0:03:25]} e4 {[%emt 0:06:51]} 15. Ne1 {[%emt 0:06:24]} Nc5 {[%emt 0:05:59]} 16. Nb1 {[%emt 0:02:13]} Bc8 $17 {[%emt 0:10:33]} 17. Bd4 {[%emt 0:06:33]} Bf5 {[%emt 0:09:39]} 18. Nc3 {[%emt 0:09:26]} c6 {[%emt 0:06:51]} 19. Rd2 {[%emt 0:06:01]} Bf8 {[%emt 0:04:22]} 20. Rcd1 {[%emt 0:04:53]} Ng4 {[%emt 0:02:52]} 21. g3 {[%emt 0:07:31]} Ne6 {[%emt 0:04:14]} 22. Ng2 {[%emt 0:09:04]} Ng5 {[%emt 0:03:20]} 23. Nf4 {[%emt 0:01:05]} Ne5 {[%emt 0:02:57]} 24. Bxe5 {[%emt 0:02:10]} Qxe5 {[%emt 0:00:01]} 25. h4 {[%emt 0:03:28]} Nf3+ {[%emt 0:01:51]} 26. Bxf3 {[%emt 0:00:06]} exf3 {[%emt 0:00:05]} 27. e4 {[%emt 0:01:06]} Bg4 {[%emt 0:02:09]} 28. Nd3 {[%emt 0:04:21]} Qe6 {[%emt 0:00:49]} 29. Re1 {[%emt 0:02:15]} Bh6 {[%emt 0:00:53]} 30. Rdd1 {[%emt 0:02:30]} Bh3 {[%emt 0:00:22]} 31. Nd5 {[%emt 0:01:11]} cxd5 {[%emt 0:00:35]} 32. cxd5 {[%emt 0:00:28]} Qg4 {[%emt 0:00:35]} 0-1

[Event "EYCC Open U12 2018"]
[Site "Riga"]
[Date "2018.08.28"]
[Round "8"]
[White "Makoveev, Ilya"]
[Black "Grebnev, Aleksey"]
[Result "1-0"]
[ECO "E62"]
[WhiteElo "2249"]
[BlackElo "2143"]
[Annotator "NA RC"]
[PlyCount "71"]
[EventDate "2018.08.20"]
[EventType "swiss"]
[EventCountry "LAT"]
[SourceTitle "playchess.com"]
[Source "ChessBase"]
[SourceQuality "1"]
[TimeControl "40/5400+30:1800+30"]

1. d4 {[%emt 0:00:00]} Nf6 {[%emt 0:00:00]} 2. c4 {[%emt 0:00:30]} g6 {[%emt 0:00:12]} 3. g3 {[%emt 0:00:45]} Bg7 {[%emt 0:00:40]} 4. Bg2 {[%emt 0:00:08]} O-O {[%emt 0:00:43]} 5. Nc3 {[%emt 0:00:20]} d6 {[%emt 0:00:23]} 6. Nf3 {[%emt 0:00:38]} Nc6 {[%emt 0:00:33]} 7. O-O {[%emt 0:00:29]} Bf5 {[%emt 0:01:33]} 8. d5 {[%emt 0:00:56]} Na5 {[%emt 0:01:11]} 9. Nd4 {[%emt 0:00:32]} Bd7 {[%emt 0:06:15]} 10. b3 {[%emt 0:00:42]} c5 {[%emt 0:08:34]} 11. dxc6 {[%emt 0:01:19]} Nxc6 {[%emt 0:02:47]} 12. Bb2 {[%emt 0:00:59]} Qa5 {[%emt 0:09:56]} 13. Rc1 {[%emt 0:03:12]} Rac8 {[%emt 0:05:21] E60: King's Indian: Unusual lines and Fianchetto Variation without Nc3} 14. e3 {[%emt 0:06:00]} a6 {[%emt 0:05:52] LiveBook: 10 Games} 15. a3 {[%emt 0:15:49]} Nxd4 {[%emt 0:06:49]} 16. exd4 {[%emt 0:02:24] [#]} b5 $146 {[%emt 0:04:15]} ({Predecessor:} 16... Bc6 17. b4 Qd8 18. d5 Bd7 19. Ne2 a5 20. c5 axb4 21. c6 bxa3 22. cxd7 {½-½ (38) Ftacnik,L (2544)-Hracek,Z (2625) Czechia 2009}) 17. b4 {[%emt 0:05:53]} Qd8 {[%emt 0:01:16]} 18. c5 {[%emt 0:02:01]} Bg4 {[%emt 0:01:07]} 19. Qb3 {[%emt 0:24:14]} dxc5 {[%emt 0:01:57]} 20. bxc5 {[%emt 0:01:16]} Qxd4 $2 {[%emt 0:06:27]} (20... Bf5 $14) 21. Nd5 {[%emt 0:04:59]} Qd2 {[%emt 0:14:16]} 22. Nxe7+ {[%emt 0:04:16]} Kh8 {[%emt 0:00:02]} 23. Nxc8 {[%emt 0:00:24]} Bxc8 {[%emt 0:00:02]} 24. Rfd1 {[%emt 0:00:53]} Qe2 {[%emt 0:01:10]} 25. Re1 {[%emt 0:02:04]} Qh5 {[%emt 0:00:10]} 26. c6 {[%emt 0:02:10]} Kg8 {[%emt 0:00:33]} 27. c7 {[%emt 0:02:37]} Qf5 {[%emt 0:01:51]} 28. Qf3 {[%emt 0:01:10]} Qg5 {[%emt 0:00:46]} 29. h4 {[%emt 0:00:33]} Qf5 {[%emt 0:00:13]} 30. Qxf5 {[%emt 0:00:35]} gxf5 $18 {[%emt 0:00:01]} 31. Red1 {[%emt 0:00:46]} Nd7 {[%emt 0:00:28]} 32. Bxg7 {[%emt 0:00:26]} Kxg7 {[%emt 0:00:07]} 33. Bb7 {[%emt 0:03:32]} Bxb7 {[%emt 0:00:50]} 34. Rxd7 {[%emt 0:00:01]} Bc8 {[%emt 0:00:02]} 35. Rd8 {[%emt 0:00:18]} f6 {[%emt 0:00:04]} 36. Rcd1 {[%emt 0:00:30]} 1-0

[Event "EYCC Open U12 2018"]
[Site "Riga"]
[Date "2018.08.29"]
[Round "9"]
[White "Droin, Augustin"]
[Black "Sokolovsky, Yahli"]
[Result "1-0"]
[ECO "B06"]
[WhiteElo "2077"]
[BlackElo "2062"]
[Annotator "NA"]
[PlyCount "160"]
[EventDate "2018.08.20"]
[EventType "swiss"]
[EventCountry "LAT"]
[SourceTitle "playchess.com"]
[Source "ChessBase"]
[SourceQuality "1"]
[TimeControl "40/5400+30:1800+30"]

1. e4 {[%emt 0:00:00]} g6 {[%emt 0:00:00]} 2. d4 {[%emt 0:00:00]} Bg7 {[%emt 0:00:00]} 3. Nf3 {[%emt 0:00:06]} d6 {[%emt 0:00:32]} 4. Bc4 {[%emt 0:00:30]} Nf6 {[%emt 0:03:39]} 5. Qe2 {[%emt 0:00:14]} O-O {[%emt 0:01:41]} 6. O-O {[%emt 0:00:23]} a6 {[%emt 0:02:47] B06: Moderne Verteidigung} (6... Bg4 7. h3 Bxf3 8. Qxf3 Nc6 9. c3 e5 10. Be3 exd4 11. cxd4 Nd7 12. Rd1 Nb6 13. Bb3 Na5 14. Nc3 Nxb3 15. axb3 c6 16. d5 {½-½ (41) Vachier Lagrave,M (2779)-Nakamura,H (2777) Saint Louis 2018}) 7. e5 {[%emt 0:04:32]} dxe5 $146 {[%emt 0:02:36]} ({Vorgänger:} 7... Ne8 8. h3 Nc6 9. c3 Kh8 10. Bf4 Na5 11. Bd3 c5 12. dxc5 dxc5 13. Rd1 {1-0 (63) Hebden,M (2516)-Harvey,M (2130) England 2012}) 8. dxe5 {[%emt 0:02:33]} Nd5 {[%emt 0:02:05]} 9. Rd1 {[%emt 0:00:21]} c6 {[%emt 0:03:46]} 10. Bxd5 {[%emt 0:06:56]} cxd5 {[%emt 0:00:06]} 11. c4 {[%emt 0:00:03]} Bg4 {[%emt 0:05:21]} 12. cxd5 {[%emt 0:15:12]} Nd7 {[%emt 0:04:05]} 13. Bf4 {[%emt 0:04:52]} Qc7 {[%emt 0:09:13]} 14. Nbd2 {[%emt 0:03:06]} Nxe5 {[%emt 0:04:40]} (14... Nb6 $142) 15. Bxe5 {[%emt 0:00:27]} Bxe5 {[%emt 0:00:04]} 16. Qxe5 {[%emt 0:00:10]} Qxe5 {[%emt 0:00:04]} 17. Nxe5 {[%emt 0:00:02]} Bxd1 {[%emt 0:00:09]} 18. Rxd1 {[%emt 0:00:06]} Rfd8 {[%emt 0:01:45]} 19. Ndc4 {[%emt 0:01:42]} Rac8 {[%emt 0:01:49]} 20. Ne3 {[%emt 0:01:08]} Rc5 {[%emt 0:02:46]} 21. Kf1 {[%emt 0:02:55]} e6 {[%emt 0:03:12]} 22. Nd3 {[%emt 0:00:18]} Rc7 {[%emt 0:02:12]} 23. dxe6 {[%emt 0:00:24]} fxe6 {[%emt 0:00:11]} 24. Ke2 {[%emt 0:00:25]} Kg7 {[%emt 0:02:25]} 25. Nf4 {[%emt 0:01:28]} Rxd1 {[%emt 0:05:55]} 26. Nxe6+ {[%emt 0:00:19]} Kf6 {[%emt 0:04:11]} 27. Nxc7 {[%emt 0:00:13]} Rb1 {[%emt 0:01:31]} 28. Ncd5+ {[%emt 0:00:07]} Ke5 {[%emt 0:07:06]} 29. Kd3 {[%emt 0:00:06]} b5 {[%emt 0:01:23]} 30. Kc2 {[%emt 0:00:13]} Re1 {[%emt 0:02:18]} 31. Nc3 {[%emt 0:00:04]} Kd4 {[%emt 0:01:57]} 32. Kd2 {[%emt 0:00:15]} Rh1 {[%emt 0:00:29]} 33. h3 {[%emt 0:00:54]} h5 {[%emt 0:02:38]} 34. Ne2+ {[%emt 0:01:04]} Ke5 {[%emt 0:00:25]} 35. f4+ {[%emt 0:00:43]} Kd6 {[%emt 0:01:03]} 36. Ng3 {[%emt 0:00:09]} Ra1 {[%emt 0:01:20]} 37. a3 {[%emt 0:00:07]} a5 {[%emt 0:01:20]} 38. Ne2 {[%emt 0:02:13]} b4 {[%emt 0:01:59]} 39. Nc4+ {[%emt 0:03:33]} Kc5 {[%emt 0:07:07]} 40. Nxa5 {[%emt 0:00:00]} bxa3 {[%emt 0:00:00]} 41. Nb3+ {[%emt 0:01:33]} Kd6 {[%emt 0:02:23]} 42. bxa3 {[%emt 0:01:22]} Rxa3 {[%emt 0:00:29]} 43. Nbd4 {[%emt 0:03:47]} Ke7 {[%emt 0:02:06]} 44. Ke1 {[%emt 0:00:26]} Kf6 {[%emt 0:00:52]} 45. Kf2 {[%emt 0:01:12]} g5 {[%emt 0:05:06]} 46. Nf3 {[%emt 0:00:29]} gxf4 {[%emt 0:03:43]} 47. Nxf4 {[%emt 0:00:10]} Ra5 {[%emt 0:00:15]} 48. Kg3 {[%emt 0:00:28]} Kg7 {[%emt 0:02:18]} 49. Kh4 {[%emt 0:00:18]} Kh6 {[%emt 0:00:05]} 50. g3 {[%emt 0:00:10]} Rc5 {[%emt 0:04:49]} 51. Ne1 {[%emt 0:01:31]} Ra5 {[%emt 0:00:46]} 52. Nc2 {[%emt 0:00:08]} Rb5 {[%emt 0:02:25]} 53. Ne3 {[%emt 0:00:11]} Re5 {[%emt 0:01:11]} 54. Nc4 {[%emt 0:01:31]} Rc5 {[%emt 0:01:03]} 55. Nd6 {[%emt 0:00:18]} Ra5 {[%emt 0:00:41]} 56. Ne4 {[%emt 0:00:43]} Rf5 {[%emt 0:00:43]} 57. Nd6 {[%emt 0:00:42]} Ra5 {[%emt 0:00:31]} 58. Ne8 {[%emt 0:00:25]} Rf5 {[%emt 0:00:24]} 59. Nc7 {[%emt 0:00:06]} Re5 {[%emt 0:00:46]} 60. Na8 {[%emt 0:00:49]} Rb5 {[%emt 0:00:36]} 61. Nc7 {[%emt 0:00:12]} Re5 {[%emt 0:00:15]} 62. Nce6 {[%emt 0:00:56]} Rf5 {[%emt 0:02:00]} 63. Nd4 {[%emt 0:00:16]} Rc5 {[%emt 0:00:57]} 64. Nf3 {[%emt 0:00:12]} Ra5 {[%emt 0:00:29]} 65. Nd2 {[%emt 0:00:08]} Rb5 {[%emt 0:01:13]} 66. Ne4 {[%emt 0:00:46]} Rf5 {[%emt 0:00:18]} 67. Nd6 {[%emt 0:01:15]} Ra5 {[%emt 0:00:44]} 68. Nc8 {[%emt 0:00:18]} Rb5 $1 {[%emt 0:01:07]} 69. Ne7 {[%emt 0:00:25]} Re5 {[%emt 0:00:16]} 70. Nc8 {[%emt 0:02:14]} Rb5 {[%emt 0:01:18]} 71. Nd6 {[%emt 0:00:26]} Ra5 {[%emt 0:00:29]} 72. g4 {[%emt 0:00:51]} hxg4 {[%emt 0:00:45]} 73. hxg4 {[%emt 0:00:05]} Ra1 {[%emt 0:03:23]} 74. g5+ $11 {[%emt 0:00:58]} Kh7 {[%emt 0:01:02]} 75. g6+ {[%emt 0:00:32]} Kh8 {[%emt 0:01:01]} 76. Nf7+ {[%emt 0:01:25]} Kg7 {[%emt 0:00:18]} 77. Ng5 {[%emt 0:00:12]} Ra4 {[%emt 0:01:01]} 78. Nge6+ {[%emt 0:00:17]} Kf6 {[%emt 0:00:32]} 79. g7 {[%emt 0:00:12]} Rxf4+ {[%emt 0:00:42]} 80. Kg3 {[%emt 0:01:13]} Ra4 {Kh4 Kf7+} 1-0

[Event "EYCC Open U12 2018"]
[Site "Riga"]
[Date "2018.08.29"]
[Round "9"]
[White "Razafindratsima, Timothe"]
[Black "Vasilyev, Alexey"]
[Result "1-0"]
[ECO "B47"]
[WhiteElo "1978"]
[BlackElo "2018"]
[Annotator "NA"]
[PlyCount "119"]
[EventDate "2018.08.20"]
[EventType "swiss"]
[EventCountry "LAT"]
[SourceTitle "playchess.com"]
[Source "ChessBase"]
[SourceQuality "1"]
[TimeControl "40/5400+30:1800+30"]

1. e4 {[%emt 0:00:00]} c5 {[%emt 0:00:00]} 2. Nf3 {[%emt 0:00:00]} e6 {[%emt 0:00:00]} 3. d4 {[%emt 0:00:00]} cxd4 {[%emt 0:00:00]} 4. Nxd4 {[%emt 0:00:00]} Nc6 {[%emt 0:00:19]} 5. Nc3 {[%emt 0:00:02]} Qc7 {[%emt 0:00:09]} 6. Be2 {[%emt 0:00:10]} a6 {[%emt 0:00:33] LiveBook: 5533 Games} 7. a3 {[%emt 0:00:28]} Nf6 {[%emt 0:01:08]} 8. Be3 {[%emt 0:00:08]} Be7 {[%emt 0:01:32]} 9. f4 {[%emt 0:00:15]} d6 {[%emt 0:00:19]} 10. g4 {[%emt 0:00:06]} Nd7 {[%emt 0:06:21]} 11. g5 {[%emt 0:00:22]} b5 {[%emt 0:01:41]} 12. h4 {[%emt 0:03:21] B84: Sicilian Scheveningen: 6 Be2 a6, lines without early Be3} Bb7 {[%emt 0:05:16]} 13. h5 $146 {[%emt 0:03:24]} ({Predecessor:} 13. Rg1 Rc8 14. f5 Nxd4 15. Qxd4 e5 {1-0 (30) Kriebel,T (2487)-Zetocha,C (2348) Slovakia 2018}) 13... Nf8 {[%emt 0:12:26]} (13... Nc5 $14) 14. Nxc6 {[%emt 0:04:50]} Bxc6 {[%emt 0:02:06]} 15. Qd4 {[%emt 0:00:26]} e5 {[%emt 0:06:52] [#]} 16. Qd2 $1 {[%emt 0:00:43]} exf4 {[%emt 0:02:54]} 17. Bxf4 {[%emt 0:00:07]} Ne6 {[%emt 0:00:13]} 18. O-O-O {[%emt 0:03:33]} ({Lieber} 18. Be3 $16) 18... Nxf4 {[%emt 0:04:04]} 19. Qxf4 {[%emt 0:00:37]} h6 {[%emt 0:00:07]} 20. gxh6 {[%emt 0:00:24]} Rxh6 {[%emt 0:00:02]} 21. Kb1 {[%emt 0:02:44]} Rd8 {[%emt 0:02:18]} 22. Nd5 {[%emt 0:08:31]} Bxd5 {[%emt 0:03:55]} 23. Rxd5 {[%emt 0:01:50]} Bf6 {[%emt 0:00:30]} 24. Rhd1 {[%emt 0:02:10]} Be5 {[%emt 0:00:20]} 25. Qg5 {[%emt 0:00:32]} Rc8 {[%emt 0:06:03]} 26. R1d2 {[%emt 0:16:55]} Rf6 {[%emt 0:06:36] [#]} 27. Bd3 {[%emt 0:27:56]} ({Not} 27. Qxg7 $2 Rf1+ 28. Bxf1 Bxg7 $19) ({Only move:} 27. Rxe5+ $1 $16 {[%mdl 512]} dxe5 28. Qxg7) 27... Rb8 {[%emt 0:03:29]} 28. Rd1 {[%emt 0:10:49]} b4 {[%emt 0:05:16]} 29. Qxg7 {[%emt 0:03:35]} Ke7 {[%emt 0:00:41]} 30. Rxe5+ {[%emt 0:01:45]} dxe5 {[%emt 0:00:06]} 31. axb4 {[%emt 0:04:03]} Rxb4 {[%emt 0:01:44]} 32. c4 {[%emt 0:01:00]} Qb6 {[%emt 0:03:50]} 33. Rd2 {[%emt 0:00:42]} Qe3 {[%emt 0:00:30]} 34. Qg2 {[%emt 0:00:40]} Rfb6 {[%emt 0:01:16]} 35. Qe2 {[%emt 0:01:34]} Qxe2 {[%emt 0:17:50]} 36. Bxe2 {[%emt 0:00:14]} Kf6 {[%emt 0:00:26]} 37. Bd3 {[%emt 0:01:24]} Kg5 {[%emt 0:00:56]} 38. Rh2 {[%emt 0:00:15]} Rb3 {[%emt 0:01:08]} 39. c5 {[%emt 0:00:18]} Rh6 {[%emt 0:01:37]} 40. Bc4 {[%emt 0:00:00]} Rb7 {[%emt 0:00:00]} 41. Rf2 {[%emt 0:08:04]} f6 {[%emt 0:10:51]} 42. Bxa6 {[%emt 0:00:46]} Rc7 {[%emt 0:00:04]} 43. b4 {[%emt 0:00:21]} Rxh5 {[%emt 0:01:10]} 44. Rf5+ {[%emt 0:00:58]} Kg6 {[%emt 0:00:32]} 45. Rxh5 {[%emt 0:01:53]} Kxh5 {[%emt 0:00:02]} 46. Bc4 {[%emt 0:03:41]} Rc8 {[%emt 0:08:11]} 47. Kc2 $18 {[%emt 0:04:24]} Kg5 {[%emt 0:00:07]} 48. Be6 {[%emt 0:00:29]} Rb8 {[%emt 0:00:08]} 49. Kc3 {[%emt 0:03:34]} Kf4 {[%emt 0:00:13]} 50. Bf5 {[%emt 0:00:29]} Ke3 {[%emt 0:00:10]} 51. Kc4 {[%emt 0:00:17]} Rd8 {[%emt 0:00:13]} 52. c6 {[%emt 0:01:06]} Rd1 {[%emt 0:00:09]} 53. b5 {[%emt 0:00:32]} Rc1+ {[%emt 0:00:19]} 54. Kd5 {[%emt 0:00:28]} Rb1 {[%emt 0:00:12]} 55. Kc5 {[%emt 0:00:26]} Rc1+ {[%emt 0:00:04]} 56. Kb6 {[%emt 0:00:23]} Kd4 {[%emt 0:00:05]} 57. c7 {[%emt 0:00:09]} Rc5 {[%emt 0:00:06]} 58. c8=Q {[%emt 0:01:10]} Rxc8 {[%emt 0:00:08]} 59. Bxc8 {[%emt 0:00:04]} Kxe4 {[%emt 0:00:02]} 60. Kc5 {[%emt 0:00:15]} 1-0